Cogmind - Beta 16 --- EXPLORER MODE // 2026.01.16 @ 14:06:55 Player: K.K.Y. Result: Destroyed by E5-AJ2(R) with Subdweller Laser Performance ------------- Evolutions (0) 0 Regions Visited (3) 600 Robots Destroyed (42) 210 Value Destroyed (890) 890 Prototype IDs (0) 0 Alien Tech Used (0) 0 Bonus (-711) -711 TOTAL SCORE: 989 Bonus ------- Follower Combat Kills 90 Friendly Fire -801 Cogmind --------- Core Integrity 0/250 Matter 300/300 Energy 125/125 System Corruption 0% Temperature Cool (6) Movement Treading (240) Ox1 Location -10/Subcaves Parts ------- > --- POWER (1) -------- Light Ion Engine > --- PROPULSION (2) --- Light Treads Light Treads > --- UTILITY (3) ------ Light Humpback Structural Scanner > --- WEAPON (2) ------- Beamcaster Ripper > --- INVENTORY (25) --- Improved Heat Sink Medium Storage Unit Sensor Array Improved Terrain Scanner Launcher Guidance Computer Makeshift Light Armor Plating Makeshift Light Armor Plating Beamcaster Mining Laser Multitool SUBCON Basin (Full) Peak State ------------ > --- POWER ------------ Light Ion Engine > --- PROPULSION ------- Light Treads Light Treads > --- UTILITY ---------- Medium Storage Unit Light Humpback > --- WEAPON ----------- Beamcaster Beamcaster > --- INVENTORY -------- Improved Heat Sink Improved Terrain Scanner Launcher Guidance Computer Makeshift Light Armor Plating Makeshift Light Armor Plating Mining Laser Multitool Ripper SUBCON Basin [Rating: 36] Favorites ----------- Power Light Angular Momentum Engine Engine Light Angular Momentum Engine Power Core Light Nuclear Core Propulsion Light Treads Treads Light Treads Utility Structural Scanner Device Structural Scanner Storage Medium Storage Unit Weapon Beamcaster Energy Gun Beamcaster Ballistic Gun Assault Rifle Special Weapon Mining Laser Slashing Weapon Ripper Build | -11 -10 -10 -10 ------- Run | Yrd Mat Min Sub Slots Evolved 1 | . 1 . . Power . | . . . . Propulsion . | . . . . Utility 1 | . 1 . . Weapon . | . . . . Parts Attached 23 | 7 5 4 7 Power 5 | 1 2 1 1 Engine 3 | 1 . 1 1 Core 2 | . 2 . . Reactor . | . . . . Propulsion 5 | 2 1 2 . Treads 5 | 2 1 2 . Leg . | . . . . Wheel . | . . . . Hover . | . . . . Flight . | . . . . Utility 5 | 2 1 . 2 Device 3 | 1 1 . 1 Storage 2 | 1 . . 1 Processor . | . . . . Hackware . | . . . . Protection . | . . . . Artifact . | . . . . Weapon 8 | 2 1 1 4 Energy Gun 3 | . . 1 2 Energy Cannon . | . . . . Ballistic Gun 3 | 2 1 . . Ballistic Cannon . | . . . . Launcher . | . . . . Special Weapon 1 | . . . 1 Impact Weapon . | . . . . Slashing Weapon 1 | . . . 1 Piercing Weapon . | . . . . Special Melee Weapon . | . . . . Unidentified Prototypes . | . . . . Parts Lost 2 | . . 1 1 Power 1 | . . . 1 Propulsion . | . . . . Utility . | . . . . Weapon 1 | . . 1 . Highest Loss Streak 1 | . . 1 1 To Critical Strikes . | . . . . Average Backups 9 | 2 9 9 9 Power . | . . . . Propulsion . | . 2 . . Utility 6 | 1 4 6 6 Weapon 1 | . 1 3 1 Tool/Special . | . . . . Unused Backups 14 | 1 2 2 9 Power . | . . . . Propulsion . | . . . . Utility 10 | . 2 . 8 Weapon 3 | 1 . 2 . Tool/Special 1 | . . . 1 Average Slot Usage (%) 97 | . 97 100 96 Engine 10 | . 6 6 11 Core 1 | . 5 5 . Treads 25 | . 25 25 25 Device 22 | . 22 25 21 Storage 12 | . 12 12 12 Energy Gun 17 | . . 8 23 Ballistic Gun 7 | . 24 15 . Peak Build Rating 36 | 7 11 14 36 Average Rating 19 | 5 9 12 24 On Entrance 8 | . 7 11 14 Avg Prop Armor Cover (%) . | . . . . Naked Turns . | . . . . Heaviest Build 63 | 19 21 25 63 Greatest Support 40 | 40 40 40 40 Greatest Overweight (x) 1 | . . . 1 Average Overweight (x) . | . . . . Largest Inventory Capacity 25 | 10 10 10 25 Average Capacity 12 | 8 10 10 13 Most Carried 25 | 5 10 10 25 Average Carried 11 | 3 9 9 13 Final Capacity 25 | 10 10 10 25 Final Carried 25 | 4 10 10 25 Class Distribution -------------------- 100% | Hacker-Mutant Dominant Class ---------------- Hacker-Mutant | -10/Materials Hacker-Mutant | -10/Mines Hacker-Mutant | -10/Subcaves Resources | -11 -10 -10 -10 ----------- Run | Yrd Mat Min Sub Matter Collected 918 | 310 267 242 99 Remotely . | . . . . Salvage Created 1671 | 125 604 400 542 Parts 95 | 12 31 18 34 Haulers Intercepted 2 | . 2 . . Recyclers Shooed 3 | . . 3 . Parts Field Recycled . | . . . . Retrieved Matter . | . . . . Parts Self-Destructed . | . . . . Prevented . | . . . . Parts Restored . | . . . . Kills | -11 -10 -10 -10 ------- Run | Yrd Mat Min Sub Combat Hostiles Destroyed 20 | . 9 1 10 Guns 20 | . 9 1 10 Classes Destroyed 15 | 3 5 2 5 Worker 1 | 1 . . . Builder 2 | . . 2 . Tunneler 3 | 3 . . . Hauler 2 | . 2 . . Recycler 4 | 1 1 2 . Mechanic 1 | . 1 . . Turret 2 | . . . 2 Watcher 2 | . 2 . . Swarmer 3 | . 2 . 1 Grunt 7 | . 7 . . Sentry 1 | . . . 1 Demolisher 1 | . . 1 . Artisan 1 | . . . 1 Subdweller 8 | . . . 8 Zionite 2 | . . . 2 Thug 3 | . . 3 . Best Kill Streak 4 | 4 4 1 3 Combat Bots Only 3 | . 3 1 3 Max Kills in Single Turn 1 | 1 1 1 1 Gunslinging . | . . . . Exploded . | . . . . Melee . | . . . . Uniques/NPCs Destroyed . | . . . . Combat | -11 -10 -10 -10 -------- Run | Yrd Mat Min Sub Hostile Shots Fired 136 | . 30 24 82 Missed 41 | . 14 1 26 Hits 95 | . 16 23 56 Projectile 95 | . 16 23 56 AOE 24 | . . 24 . Critical Strikes 1 | . . . 1 Damage Taken 1194 | . 128 549 517 Core 260 | . 18 124 118 Absorbed by Shields . | . . . . Ignored by Resistances 717 | . 81 319 317 Core Remaining (%) 100 | 100 . . . Volleys Fired 146 | 10 43 32 61 Largest 2 | 2 2 2 2 Hottest 150 | 40 40 70 150 Shots Fired 289 | 20 86 64 119 Gun 288 | 20 86 64 118 Cannon . | . . . . Launcher . | . . . . Special 1 | . . . 1 Kinetic 161 | 20 86 52 3 Thermal 128 | . . 12 116 Explosive . | . . . . Electromagnetic . | . . . . Robot Hit Streak 40 | 15 33 31 40 Robot Miss Streak 2 | . 1 2 1 Penetration Max . | . . . . Secondary Targets 4 | . 2 . 2 Max Gunslinging Chain 1 | . 1 . 1 Shots Hit Robots 213 | 15 77 60 61 Core Hits 85 | 7 29 22 27 Critical Kills 2 | . 1 1 . Critical Parts Destroyed 1 | . 1 . . Critical Strikes 8 | . 2 4 2 Burn 5 | . . 3 2 Destroy 3 | . 2 1 . Melee Attacks 9 | . . . 9 Impact . | . . . . Slashing 9 | . . . 9 Piercing . | . . . . Sneak Attacks . | . . . . Combat Hostiles . | . . . . Follow-up Attacks . | . . . . Damage Inflicted 3107 | 174 935 788 1210 Guns 3107 | 174 935 788 1210 Cannons . | . . . . Explosions . | . . . . Melee . | . . . . Ramming . | . . . . Kinetic 1760 | 174 935 636 15 Thermal 1347 | . . 152 1195 Explosive . | . . . . Electromagnetic . | . . . . Impact . | . . . . Slashing . | . . . . Piercing . | . . . . Highest Corruption . | . . . . Average Corruption . | . . . . Corruption Purged . | . . . . Corruption Blocked . | . . . . Overload Shots . | . . . . Overflow Damage . | . . . . Projectiles . | . . . . Explosions . | . . . . Melee . | . . . . Knockbacks . | . . . . Impact . | . . . . Kinetic . | . . . . Secondary . | . . . . Self-Inflicted Damage . | . . . . Shots . | . . . . Rammed . | . . . . Targets Rammed . | . . . . Kicked . | . . . . Crushed . | . . . . Highest Temperature 306 | . 9 75 306 Average Temperature 52 | . 4 27 61 Received Heat Transfer 279 | . 96 . 183 Siege Activations . | . . . . Martial Activations . | . . . . Shielding Activations . | . . . . Robots Disrupted . | . . . . Combat Hostiles . | . . . . Robots Corrupted . | . . . . Combat Hostiles . | . . . . Parts Fried . | . . . . Impact Corruptions . | . . . . Robots Melted . | . . . . Combat Hostiles . | . . . . Parts Melted 7 | . . 1 6 Heat Transferred 2960 | . . 666 2294 Parts Sabotaged . | . . . . Parts Stolen . | . . . . Parts Stripped . | . . . . Power Chain Reactions . | . . . . Alert | -11 -10 -10 -10 ------- Run | Yrd Mat Min Sub Maximum Alert Level . | . . . . Low Security (%) 100 | 100 100 100 . Level 1 . | . . . . Level 2 . | . . . . Level 3 . | . . . . Level 4 . | . . . . Level 5 . | . . . . High Security . | . . . . Max Security . | . . . . Peak Influence 82 | 5 82 30 . Initial 4 | . 2 4 . Average 6 | 1 10 1 . Influence Increases 650 | 25 300 50 275 Destroy 0b10 Robot/C 280 | . 180 20 80 Destroy 0b10 Robot/NC 75 | 25 30 20 . Destroy Leader 68 | . 58 10 . Trap Triggered on 0b10 20 | . 20 . . Successful Hack 12 | . 12 . . Lose Combat Pursuer 195 | . . . 195 Influence Decreases 650 | 20 290 65 275 Entered New Map 14 | . 3 11 . Time Decay 626 | 20 287 54 265 Lost Part 10 | . . . 10 Squads Dispatched 1 | . 1 . . Investigation 1 | . 1 . . Extermination . | . . . . Reinforcement . | . . . . Assault . | . . . . Garrison . | . . . . Intercept . | . . . . Searches Triggered . | . . . . Construction Impeded . | . . . . Haulers Reinforced . | . . . . Active Scanning Responses . | . . . . Cargo Convoy Interrupts . | . . . . Stealth | -11 -10 -10 -10 --------- Run | Yrd Mat Min Sub Distress Signals 1 | . 1 . . Communications Jammed . | . . . . Distress Signals . | . . . . Times Spotted 44 | . 15 3 26 Peak Tracking Total 4 | . 3 2 4 Tactical Retreats 5 | . . . 5 Traps | -11 -10 -10 -10 ------- Run | Yrd Mat Min Sub Traps Triggered 3 | . 2 . 1 Indirectly . | . . . . Trap Hack Attempts . | . . . . Triggered . | . . . . Disarmed 17 | . 17 . . Reprogrammed 6 | . 6 . . Reused 2 | . 2 . . Traps Extracted . | . . . . Installed . | . . . . Triggered 2 | . 2 . . Machines | -11 -10 -10 -10 ---------- Run | Yrd Mat Min Sub Machines Disabled 1 | . . . 1 Max in Single Turn 1 | . . . 1 Machines Repaired . | . . . . Machines Dismantled . | . . . . Machines Sabotaged . | . . . . Overloaded Fab Kills . | . . . . Hacking | -11 -10 -10 -10 --------- Run | Yrd Mat Min Sub Machines Accessed 13 | . 10 . 3 Terminals 8 | . 8 . . Fabricators . | . . . . Repair Stations . | . . . . Recycling Units 2 | . 2 . . Scanalyzers . | . . . . Garrison Access . | . . . . Total Hacks 39 | . 31 . 8 Successful 33 | . 25 . 8 Failed 6 | . 6 . . Catastrophic . | . . . . Database Lockouts . | . . . . Manual 12 | . 12 . . Terminals 27 | . 27 . . Fabricators . | . . . . Repair Stations . | . . . . Recycling Units 4 | . 4 . . Scanalyzers . | . . . . Garrison Access . | . . . . Terminal Hacks 23 | . 15 . 8 Record 9 | . 3 . 6 Robot Analysis 2 | . 2 . . Open Door 1 | . . . 1 Locate Traps 1 | . 1 . . Disarm Traps 5 | . 5 . . Reprogram Traps 3 | . 3 . . Hauler Manifests 1 | . 1 . . Release Object 1 | . . . 1 Fabricator Hacks . | . . . . Repair Station Hacks . | . . . . Recycling Unit Hacks 2 | . 2 . . Retrieve Components 2 | . 2 . . Scanalyzer . | . . . . Garrison Access Hacks . | . . . . Unauthorized Hacks 8 | . 8 . . Terminals 6 | . 6 . . Botnet 6 | . 6 . . Fabricators . | . . . . Repair Stations . | . . . . Recycling Units 2 | . 2 . . Reject 2 | . 2 . . Scanalyzers . | . . . . Garrison Access . | . . . . Data Cores Recovered . | . . . . Used . | . . . . Hacking Detections 8 | . 8 . . Full Trace Events 3 | . 3 . . Feedback Events . | . . . . Feedback Blocked . | . . . . Robot Schematics Acquired . | . . . . Robots Built . | . . . . Authchips . | . . . . Time . | . . . . Total Robot Build Rating . | . . . . Part Schematics Acquired . | . . . . Parts Built . | . . . . Authchips . | . . . . Time . | . . . . Total Part Build Rating . | . . . . Part Studies Acquired . | . . . . Parts Repaired . | . . . . Time . | . . . . Parts Recycled . | . . . . Recycled Matter . | . . . . Retrieved Matter . | . . . . Retrieved Components 11 | . 11 . . Parts Scanalyzed . | . . . . Part Schematics Acquired . | . . . . Parts Damaged . | . . . . Bothacking | -11 -10 -10 -10 ------------ Run | Yrd Mat Min Sub Used RIF Installer . | . . . . Robots Hacked . | . . . . Non-combat . | . . . . Combat . | . . . . Robot Hacks Applied . | . . . . Relay Couplers Released . | . . . . Fabnet Peak Effective % . | . . . . Robots Rewired . | . . . . Allies Hacked . | . . . . Hacks Repelled . | . . . . Allies | -11 -10 -10 -10 -------- Run | Yrd Mat Min Sub Total Allies 3 | . . 3 . Largest Group 3 | . . 3 3 Highest-Rated Group 40 | . . 40 40 Highest-Rated Ally 16 | . . 16 16 Total Orders . | . . . . Ally Attacks 20 | . . . 20 Total Damage 238 | . . . 238 Kills 3 | . . . 3 Allies Corrupted . | . . . . Allies Melted . | . . . . Intel | -11 -10 -10 -10 ------- Run | Yrd Mat Min Sub Active Infowar (turns) 6773 | 132 1258 1046 4337 Sensors 5596 | . 1000 1046 3550 Structural 6772 | 132 1258 1046 4336 Robot Analysis Total 2 | . 2 . . Derelict Logs Recovered 3 | . . . 3 Drone Launches . | . . . . Drone Recoveries . | . . . . Exploration | -11 -10 -10 -10 ------------- Run | Yrd Mat Min Sub Turns Passed 7028 | 159 1258 1046 4565 Spaces Moved 2757 | 76 666 577 1438 Core 14 | 14 . . . Treads 2743 | 62 666 577 1438 Legs . | . . . . Wheels . | . . . . Hover . | . . . . Flight . | . . . . Fastest Speed 50 | 50 160 160 160 Average Speed 170 | 139 160 160 180 Slowest Speed 240 | 160 160 160 240 Overloaded Moves . | . . . . Propulsion Burnouts . | . . . . Robots Hopped . | . . . . Potential Cave-ins 2 | . . . 2 Cave-ins Triggered . | . . . . Exploration Rate (%) 71 | 4 99 99 85 Regions Visited 3 Branch Regions 2 Pre-discovered Areas 1 | . . . 1 Known Exits Taken 3 | 1 1 1 . Unknown Exits Taken . | . . . . Scrap Searched 11 | . . 2 9 Spaces Dug 23 | . . . 23 Terrain Destroyed 24 | . . . 24 Melee 5 | . . . 5 Projectile 19 | . . . 19 AOE . | . . . . Terrain Rammed . | . . . . Walls Destroyed . | . . . . Machines Disabled . | . . . . Actions | -11 -10 -10 -10 --------- Run | Yrd Mat Min Sub Total 4799 | 109 779 638 3273 Wait 1803 | 8 44 15 1736 Move 2754 | 75 665 576 1438 Hop . | . . . . Pick Up 34 | 8 11 5 10 Fast Attach 8 | 4 3 . 1 Attach 7 | 3 1 1 2 Detach . | . . . . Swap 15 | . 5 4 6 Drop 23 | 1 7 5 10 Fire 146 | 10 43 32 61 Melee 9 | . . . 9 Ram . | . . . . Kick . | . . . . Crush . | . . . . Escape Stasis . | . . . . Rewire . | . . . . Trap . | . . . . Miscellaneous . | . . . . Route ------- -11/Scrapyard -10/Materials (discovered 5 exits: *Mat x3 / *Min x2) -10/Mines (discovered 4 exits: *Mat x2 / *Exi / *Sub) -10/Subcaves (discovered 3 exits: *Mat x2 / *Rec) History --------- Turn | Location | Event 7 | -11/Scrapyard | Identified exit to Materials 7 | -11/Scrapyard | Discovered exit to Materials (range 15) 160 | -11/Scrapyard | Entered Materials 160 | -10/Materials | Evolved 1 slot: Utility x1 303 | -10/Materials | Build established: Hacker-Mutant 419 | -10/Materials | Identified exit to Mines 419 | -10/Materials | Discovered exit to Mines (range 14) 604 | -10/Materials | Identified exit to Materials 604 | -10/Materials | Discovered exit to Materials (range 7) 993 | -10/Materials | Discovered exit to Materials (range 11) 1208 | -10/Materials | Discovered exit to Materials (range 16) 1305 | -10/Materials | Discovered exit to Mines (range 15) 1418 | -10/Materials | Entered Mines 1454 | -10/Mines | Received a Rocket Launcher from a helpful Derelict 1479 | -10/Mines | Met a Derelict bent on vengeance 1490 | -10/Mines | Deemed a non-threat by the Exiles lab entrance 1490 | -10/Mines | Identified exit to Exiles 1490 | -10/Mines | Discovered exit to Exiles (range 5) 1613 | -10/Mines | Joined a pair of Derelicts in attacking an 0b10 outpost 1663 | -10/Mines | Assembled infested the area 1720 | -10/Mines | Core integrity fell below 50% 1728 | -10/Mines | Met 8R-AWN 2271 | -10/Mines | Discovered exit to Materials (range 11) 2287 | -10/Mines | Assisted by bots powering up and referring to "LRC-V3" 2431 | -10/Mines | Discovered exit to Materials (range 7) 2442 | -10/Mines | Identified exit to Subcaves 2442 | -10/Mines | Discovered exit to Subcaves (range 7) 2464 | -10/Mines | Entered Subcaves 2464 | -10/Subcaves | Accompanied by 3 allies 2531 | -10/Subcaves | Ambushed by angry Subdweller bent on revenge 2547 | -10/Subcaves | Shifting Twisted Machinery released Mak. Spear 2555 | -10/Subcaves | Shifting Twisted Machinery released Multitool 2657 | -10/Subcaves | Learned 8 Materials zone layouts 4450 | -10/Subcaves | Identified exit to Recycling 4564 | -10/Subcaves | A swath of the cavern ceiling suddenly collapsed 4614 | -10/Subcaves | Identified exit to Materials 4614 | -10/Subcaves | Discovered exit to Materials (range 8) 4906 | -10/Subcaves | Visited Clippyterm 4911 | -10/Subcaves | Learned Research security intel 4911 | -10/Subcaves | Learned Factory emergency access door positions 5038 | -10/Subcaves | Shifting Twisted Machinery released Sub. Beam Cannon 5051 | -10/Subcaves | Shifting Twisted Machinery released Sub. Power Source 5123 | -10/Subcaves | Shifting Twisted Machinery released Ripper 5123 | -10/Subcaves | Shifting Twisted Machinery released Scrap Shield 5411 | -10/Subcaves | Discovered exit to Materials (range 12) 5464 | -10/Subcaves | A Subdweller sparked back to life 5464 | -10/Subcaves | A Subdweller sparked back to life 5464 | -10/Subcaves | A Subdweller sparked back to life 5610 | -10/Subcaves | Core integrity fell below 20% 6015 | -10/Subcaves | Found SUBCON Basin 6533 | -10/Subcaves | Ambushed by Subdweller buried in earth 6805 | -10/Subcaves | Learned location of Zion (-6) 6805 | -10/Subcaves | Met a Zionite searching for "candidates" 7027 | -10/Subcaves | Disturbed a concealed Subdweller 7029 | -10/Subcaves | Destroyed by E5-AJ2(R) with Subdweller Laser Last Messages --------------- at any moment. For your health and safety might I suggest a trip to Zion?" World map updated: -6/Zion. 06828_ QN-1GD(z) destroyed. 06830_ PQ-7BK(z) destroyed. 06837_ Acquired 10 matter. 07017_ Searching scrap... 07017_ Found Battle Cannon. 07017_ Found Riot Gun. 07017_ Found 48 Matter. 07022_ Searching scrap... 07022_ Found Sub. Machine Gun. 07022_ Found Sub. Power Source. 07022_ Found 47 Matter. 07025_ Searching scrap... 07025_ Found Sub. Machine Gun. 07025_ Found 50 Matter. 07027_ E5-AJ2(R) angrily emerges from the Twisted Machinery. 07029_ E5-AJ2(R): "SUB#$%&!" Map ----- +----------------------------------------------------+ | ####### "# ##??######????????????????? | | ##### ##### ##????????????????????????? | | ### ##### ###????????????????????????? | | ###" ### ###????????????????????????? | | ###### ## ###????????????????????????? | | ######## ##????????????????????????? | | ###??#### ##????????????????????????? | | ######### ## ###????????????????????????? | | ######## ## ####????????????????????????? | | ### ### ######?????????????????????????? | | ## ## #####??????????????????????????? | | ### ####???????????????????????????? | | ## ##### ####??????????????????????????? | | ## ### ###??????????????????????????? | | # ### ##??????????????????????????? | | # ### # ####????????????????????????? | | # ### ## ####???????????????????????## | | ##### #### # ##???????????????????????## | | ### ##### ###???????????????????????## | | ### ##### ##???????????????????????## | | #### #### #####????????????????????## | | #### # ######?????????????????????? | | ### ## [[ ####???????????????????? | | ? ### # #*## ##???????????????????# | | ?? ### ### #<%### ##???????????????##### | | ?? #?? ## #%<[@# ##??????????????###### | | ? ???? #<$&<# ????????????????### ## | | ?### ### ??? ##R$<# ????????????????## ##" | | ?###########???? # ##### ????????????????### # | | ??####?#####????## ??????????????##### # | | ???????????????? ????????????????######## ### | | ????????????????# #???????????????###### ### | | ????????????????#######???????????????## ### ####? | | ????????????????#######???????????????### #%### #? | | ??????????????????????????????????????#### ####??? | | ???????????????????????????????????????#### ###??? | | #########???????????????????????????????#### ##??? | | #########????????????????????????????????### ##??? | | #""""""##?????????????????????????????######=##??? | | #""""X"##????????????????????????????######%###??? | | # "##????????????????????????????### # ####??? | | # "##????????????????????????????## # ####???? | | #" """"##????????????????????????????### ####????? | | ## ######????????????????????????????## ####?????? | | #" ""####???????????????????????????### ###??????? | | #X ####????????????????????#####?#### ##???????? | | ## #####??????????????????######### ###???????? | | #### #####??????####??????### ##### #%##???????? | | ## ## ####?????#########?### ##"##[##???????? | | ### "#########"#""# #### ######???????? | +----------------------------------------------------+ Best States ------------- Heat Dissipation 25 Energy Generation 18 Energy Capacity 250 Matter Stores 300 Matter Capacity 300 Sight Range 16 Robot Scan Range 14 Terrain Scan Density 10 Resistance: KI 35 Resistance: TH 35 Resistance: EX 35 Resistance: EM 35 Resistance: I 35 Resistance: S 35 Resistance: P 35 Evasion (%) 50 Recoil Reduction 2 Offensive Hacking 20 Item Schematics ----------------- None Robot Schematics ------------------ None Fabricated ------------ Nothing Repaired ---------- Nothing Studied --------- None Alien Tech Used ----------------- None Achievements -------------- None Challenges ------------ None Game ------ Seed DecoderSalvageCharge Manual? 0 Play Time 00:26:01 Cumulative 287.7 hours Start 2026.01.16 @ 13:43:10 End 2026.01.16 @ 14:06:55 Sessions 1 Manual Loads 0 Difficulty Explorer Special Mode None Game No. 445 Rogue 0 Adventurer 0 Explorer 445 Win Type - Total 0 Types 0/0/0/0/0/0/0/0/0/0 Lore% 75 Gallery% 69 Achievement% 55 Wizard Run 0 Options --------- Layout 1 ASCII 0 Keyboard 0 Movement Mouse Keybinds 1 Fullscreen 1 Font 24/Smallcaps Map View 50x35 Zoom Use 0% Tactical HUD 1 Map Filters NONE Filters NONE Steam 1 RUN: a50d803d-86b6-4ee7-8cf9-3e5646b3ef96